Cogmind - Beta 16 @@@ ROGUE MODE // 2025.10.29 @ 18:40:40 Player: ZLD1 Result: Destroyed by NJ-Q3K(R) with Subdweller Machine Gun Performance ------------- Evolutions (0) 0 Regions Visited (3) 600 Robots Destroyed (1) 5 Value Destroyed (10) 10 Prototype IDs (0) 0 Alien Tech Used (0) 0 Bonus (0) 0 TOTAL SCORE: 615 Bonus ------- None Cogmind --------- Core Integrity 0/250 Matter 198/300 Energy 99/100 System Corruption 0% Temperature Cool (0) Movement Core (50) Location -10/Subcaves Parts ------- > --- POWER (1) -------- (None) > --- PROPULSION (2) --- (None) > --- UTILITY (2) ------ (None) > --- WEAPON (2) ------- (None) > --- INVENTORY (5) ---- Ion Engine Aluminum Leg Aluminum Leg Medium Storage Unit Thief Drone Bay Peak State ------------ > --- POWER ------------ (None) > --- PROPULSION ------- (None) > --- UTILITY ---------- (None) > --- WEAPON ----------- Mining Claw > --- INVENTORY -------- Ion Engine Aluminum Leg Aluminum Leg Medium Storage Unit Thief Drone Bay [Rating: 2] Favorites ----------- Power None Propulsion None Utility None Weapon Mining Claw Slashing Weapon Mining Claw Build | -11 -10 -10 -10 ------- Run | Yrd Mat Min Sub Slots Evolved . | . . . . Power . | . . . . Propulsion . | . . . . Utility . | . . . . Weapon . | . . . . Parts Attached 1 | . 1 . . Power . | . . . . Engine . | . . . . Core . | . . . . Reactor . | . . . . Propulsion . | . . . . Treads . | . . . . Leg . | . . . . Wheel . | . . . . Hover . | . . . . Flight . | . . . . Utility . | . . . . Device . | . . . . Storage . | . . . . Processor . | . . . . Hackware . | . . . . Protection . | . . . . Artifact . | . . . . Weapon 1 | . 1 . . Energy Gun . | . . . . Energy Cannon . | . . . . Ballistic Gun . | . . . . Ballistic Cannon . | . . . . Launcher . | . . . . Special Weapon . | . . . . Impact Weapon . | . . . . Slashing Weapon 1 | . 1 . . Piercing Weapon . | . . . . Special Melee Weapon . | . . . . Unidentified Prototypes . | . . . . Parts Lost 1 | . . . 1 Power . | . . . . Propulsion . | . . . . Utility . | . . . . Weapon 1 | . . . 1 Highest Loss Streak 1 | . . . 1 To Critical Strikes . | . . . . Average Backups 4 | 2 5 5 5 Power 1 | . 2 1 1 Propulsion 1 | 1 2 2 2 Utility 1 | . 1 1 2 Weapon . | . . . . Tool/Special . | . . . . Unused Backups 7 | . 1 1 5 Power 2 | . . 1 1 Propulsion 2 | . . . 2 Utility 3 | . 1 . 2 Weapon . | . . . . Tool/Special . | . . . . Average Slot Usage (%) 12 | . 9 14 12 Slashing Weapon 12 | . 9 14 12 Peak Build Rating 2 | . 1 2 2 Average Rating 1 | . . 1 1 On Entrance . | . . 1 2 Avg Prop Armor Cover (%) . | . . . . Naked Turns 38 | . 24 . 14 Heaviest Build 2 | . 2 2 2 Greatest Support 3 | 3 3 3 3 Greatest Overweight (x) . | . . . . Average Overweight (x) . | . . . . Largest Inventory Capacity 5 | 5 5 5 5 Average Capacity 5 | 5 5 5 5 Most Carried 5 | 5 5 5 5 Average Carried 4 | 3 4 4 5 Final Capacity 5 | 5 5 5 5 Final Carried 5 | 5 5 5 5 Class Distribution -------------------- 100% | Mutant Dominant Class ---------------- Mutant | -10/Materials Mutant | -10/Mines Mutant | -10/Subcaves Resources | -11 -10 -10 -10 ----------- Run | Yrd Mat Min Sub Matter Collected 77 | 63 . 14 . Remotely . | . . . . Salvage Created 15 | . . 15 . Parts . | . . . . Haulers Intercepted . | . . . . Recyclers Shooed . | . . . . Parts Field Recycled . | . . . . Retrieved Matter . | . . . . Parts Self-Destructed . | . . . . Prevented . | . . . . Parts Restored . | . . . . Kills | -11 -10 -10 -10 ------- Run | Yrd Mat Min Sub Combat Hostiles Destroyed 1 | . . 1 . Melee 1 | . . 1 . Classes Destroyed 1 | . . 1 . Swarmer 1 | . . 1 . Best Kill Streak 1 | . . 1 . Combat Bots Only 1 | . . 1 . Max Kills in Single Turn 1 | . . 1 . Gunslinging . | . . . . Exploded . | . . . . Melee 1 | . . 1 . Uniques/NPCs Destroyed . | . . . . Combat | -11 -10 -10 -10 -------- Run | Yrd Mat Min Sub Hostile Shots Fired 33 | . . 21 12 Missed 10 | . . 6 4 Hits 23 | . . 15 8 Projectile 23 | . . 15 8 Critical Strikes 1 | . . . 1 Damage Taken 296 | . . 125 171 Core 254 | . . 125 129 Absorbed by Shields . | . . . . Core Remaining (%) 100 | 100 . . . Volleys Fired . | . . . . Largest . | . . . . Hottest . | . . . . Shots Fired . | . . . . Gun . | . . . . Cannon . | . . . . Launcher . | . . . . Special . | . . . . Kinetic . | . . . . Thermal . | . . . . Explosive . | . . . . Electromagnetic . | . . . . Robot Hit Streak . | . . . . Robot Miss Streak . | . . . . Penetration Max . | . . . . Secondary Targets . | . . . . Shots Hit Robots 4 | . . 4 . Core Hits 2 | . . 1 1 Critical Kills . | . . . . Critical Parts Destroyed . | . . . . Critical Strikes . | . . . . Melee Attacks 4 | . . 4 . Impact . | . . . . Slashing 4 | . . 4 . Piercing . | . . . . Sneak Attacks 2 | . . 2 . Combat Hostiles . | . . . . Follow-up Attacks . | . . . . Damage Inflicted 170 | . . 144 26 Guns . | . . . . Cannons . | . . . . Explosions . | . . . . Melee 144 | . . 144 . Ramming 26 | . . . 26 Kinetic . | . . . . Thermal . | . . . . Explosive . | . . . . Electromagnetic . | . . . . Impact . | . . . . Slashing 144 | . . 144 . Piercing . | . . . . Highest Corruption . | . . . . Average Corruption . | . . . . Corruption Purged . | . . . . Corruption Blocked . | . . . . Overload Shots . | . . . . Overflow Damage 32 | . . 32 . Projectiles . | . . . . Explosions . | . . . . Melee 32 | . . 32 . Knockbacks . | . . . . Impact . | . . . . Kinetic . | . . . . Secondary . | . . . . Self-Inflicted Damage 12 | . . . 12 Shots . | . . . . Rammed 8 | . . . 8 Targets Rammed 8 | . . . 8 Kicked . | . . . . Crushed . | . . . . Highest Temperature . | . . . . Average Temperature . | . . . . Received Heat Transfer 42 | . . . 42 Siege Activations . | . . . . Martial Activations . | . . . . Shielding Activations . | . . . . Robots Disrupted . | . . . . Combat Hostiles . | . . . . Robots Corrupted . | . . . . Combat Hostiles . | . . . . Parts Fried . | . . . . Impact Corruptions . | . . . . Robots Melted . | . . . . Combat Hostiles . | . . . . Parts Melted . | . . . . Heat Transferred . | . . . . Parts Sabotaged . | . . . . Parts Stolen . | . . . . Parts Stripped . | . . . . Power Chain Reactions . | . . . . Alert | -11 -10 -10 -10 ------- Run | Yrd Mat Min Sub Maximum Alert Level . | . . . . Low Security (%) 100 | 100 100 100 . Level 1 . | . . . . Level 2 . | . . . . Level 3 . | . . . . Level 4 . | . . . . Level 5 . | . . . . High Security . | . . . . Max Security . | . . . . Peak Influence 20 | . . 20 . Initial . | . . . . Average 1 | . . 3 . Influence Increases 20 | . . 20 . Destroy 0b10 Robot/C 20 | . . 20 . Influence Decreases 20 | . . 10 10 Entered New Map 6 | . . . 6 Time Decay 14 | . . 10 4 Squads Dispatched . | . . . . Investigation . | . . . . Extermination . | . . . . Reinforcement . | . . . . Assault . | . . . . Garrison . | . . . . Intercept . | . . . . Searches Triggered . | . . . . Construction Impeded . | . . . . Haulers Reinforced . | . . . . Active Scanning Responses . | . . . . Cargo Convoy Interrupts . | . . . . Stealth | -11 -10 -10 -10 --------- Run | Yrd Mat Min Sub Distress Signals . | . . . . Communications Jammed . | . . . . Distress Signals . | . . . . Times Spotted 8 | . 2 3 3 Peak Tracking Total 3 | . 2 3 3 Tactical Retreats . | . . . . Traps | -11 -10 -10 -10 ------- Run | Yrd Mat Min Sub Traps Triggered . | . . . . Indirectly . | . . . . Trap Hack Attempts . | . . . . Triggered . | . . . . Disarmed . | . . . . Reprogrammed . | . . . . Reused . | . . . . Traps Extracted . | . . . . Installed . | . . . . Triggered . | . . . . Machines | -11 -10 -10 -10 ---------- Run | Yrd Mat Min Sub Machines Disabled . | . . . . Max in Single Turn . | . . . . Machines Repaired . | . . . . Machines Dismantled . | . . . . Machines Sabotaged . | . . . . Overloaded Fab Kills . | . . . . Hacking | -11 -10 -10 -10 --------- Run | Yrd Mat Min Sub Machines Accessed 1 | . . 1 . Terminals . | . . . . Fabricators . | . . . . Repair Stations . | . . . . Recycling Units . | . . . . Scanalyzers . | . . . . Garrison Access . | . . . . Total Hacks 1 | . . 1 . Successful 1 | . . 1 . Failed . | . . . . Catastrophic . | . . . . Database Lockouts . | . . . . Manual . | . . . . Terminals . | . . . . Fabricators . | . . . . Repair Stations . | . . . . Recycling Units . | . . . . Scanalyzers . | . . . . Garrison Access . | . . . . Terminal Hacks 1 | . . 1 . Open Door 1 | . . 1 . Fabricator Hacks . | . . . . Repair Station Hacks . | . . . . Recycling Unit Hacks . | . . . . Scanalyzer . | . . . . Garrison Access Hacks . | . . . . Unauthorized Hacks . | . . . . Terminals . | . . . . Fabricators . | . . . . Repair Stations . | . . . . Recycling Units . | . . . . Scanalyzers . | . . . . Garrison Access . | . . . . Data Cores Recovered . | . . . . Used . | . . . . Hacking Detections . | . . . . Full Trace Events . | . . . . Feedback Events . | . . . . Feedback Blocked . | . . . . Robot Schematics Acquired . | . . . . Robots Built . | . . . . Authchips . | . . . . Time . | . . . . Total Robot Build Rating . | . . . . Part Schematics Acquired . | . . . . Parts Built . | . . . . Authchips . | . . . . Time . | . . . . Total Part Build Rating . | . . . . Part Studies Acquired . | . . . . Parts Repaired . | . . . . Time . | . . . . Parts Recycled . | . . . . Recycled Matter . | . . . . Retrieved Matter . | . . . . Retrieved Components . | . . . . Parts Scanalyzed . | . . . . Part Schematics Acquired . | . . . . Parts Damaged . | . . . . Bothacking | -11 -10 -10 -10 ------------ Run | Yrd Mat Min Sub Used RIF Installer . | . . . . Robots Hacked . | . . . . Non-combat . | . . . . Combat . | . . . . Robot Hacks Applied . | . . . . Relay Couplers Released . | . . . . Fabnet Peak Effective % . | . . . . Robots Rewired . | . . . . Allies Hacked . | . . . . Hacks Repelled . | . . . . Allies | -11 -10 -10 -10 -------- Run | Yrd Mat Min Sub Total Allies . | . . . . Largest Group . | . . . . Highest-Rated Group . | . . . . Highest-Rated Ally . | . . . . Total Orders . | . . . . Ally Attacks . | . . . . Total Damage . | . . . . Kills . | . . . . Allies Corrupted . | . . . . Allies Melted . | . . . . Intel | -11 -10 -10 -10 ------- Run | Yrd Mat Min Sub Active Infowar (turns) . | . . . . Robot Analysis Total . | . . . . Derelict Logs Recovered 1 | . . 1 . Drone Launches . | . . . . Drone Recoveries . | . . . . Exploration | -11 -10 -10 -10 ------------- Run | Yrd Mat Min Sub Turns Passed 274 | 20 84 85 85 Spaces Moved 487 | 30 161 143 153 Core 487 | 30 161 143 153 Treads . | . . . . Legs . | . . . . Wheels . | . . . . Hover . | . . . . Flight . | . . . . Fastest Speed 50 | 50 50 50 50 Average Speed 50 | 50 50 50 50 Slowest Speed 50 | 50 50 50 50 Overloaded Moves . | . . . . Propulsion Burnouts . | . . . . Robots Hopped . | . . . . Potential Cave-ins . | . . . . Cave-ins Triggered . | . . . . Exploration Rate (%) 20 | 3 35 33 9 Regions Visited 3 Branch Regions 2 Pre-discovered Areas . | . . . . Known Exits Taken . | . . . . Unknown Exits Taken 3 | 1 1 1 . Scrap Searched 1 | . . 1 . Spaces Dug . | . . . . Terrain Destroyed . | . . . . Melee . | . . . . Projectile . | . . . . AOE . | . . . . Terrain Rammed . | . . . . Walls Destroyed . | . . . . Machines Disabled . | . . . . Actions | -11 -10 -10 -10 --------- Run | Yrd Mat Min Sub Total 506 | 34 163 148 161 Wait . | . . . . Move 484 | 29 160 142 153 Hop . | . . . . Pick Up 7 | 5 1 1 . Fast Attach 1 | . 1 . . Attach . | . . . . Detach . | . . . . Swap . | . . . . Drop 2 | . 1 1 . Fire . | . . . . Melee 4 | . . 4 . Ram 8 | . . . 8 Kick . | . . . . Crush . | . . . . Escape Stasis . | . . . . Rewire . | . . . . Trap . | . . . . Miscellaneous . | . . . . Route ------- -11/Scrapyard -10/Materials (discovered 2 exits: [*Mat] / *Min) -10/Mines (discovered 2 exits: [*Mat] / [*Sub]) -10/Subcaves History --------- Turn | Location | Event 14 | -11/Scrapyard | Discovered new exit (range 15) 21 | -11/Scrapyard | Entered Materials 71 | -10/Materials | Discovered new exit (range 8) 85 | -10/Materials | Discovered new exit (range 6) 105 | -10/Materials | Entered Mines 140 | -10/Mines | Learned 4 Materials zone layouts 161 | -10/Mines | Discovered new exit (range 7) 165 | -10/Mines | Found the Drone Emporium 168 | -10/Mines | Found Prototype Device 187 | -10/Mines | Discovered new exit (range 4) 190 | -10/Mines | Entered Subcaves 191 | -10/Subcaves | Approached by a straggling Scientist 254 | -10/Subcaves | Core integrity fell below 50% 268 | -10/Subcaves | Core integrity fell below 20% 275 | -10/Subcaves | Destroyed by NJ-Q3K(R) with Subdweller Machine Gun Last Messages --------------- 00184_ Sneak attack on T-07 Excavator. 00184_ Destroyed Mining Laser. 00187_ EXIT=FOUND 00188_ U-05 Engineer lays Concrete. LOCATION=UNKNOWN AMBIENT_HEAT=-10 GOAL=ESCAPE 00191_ NT-JB8(c): "Thank the algorithms! I was beginning to lose hope I'd never make it past all the Subs lurking out here." 00194_ NT-JB8(c): "Hey, let me tag along and I can get us both out of this nasty situation. At least I think I can... The group I got separated from was talking about a shortcut back to the UFD." 00232_ 40-TG6(R): "SUBSUB!" NT-JB8(c): "I think it's somewhere south of here" 00261_ Mining Claw destroyed. 00264_ Slammed into 40-TG6(R). Map ----- +----------------------------------------------------+ | ????????????????????## ##????????????????? | | ????????????????????## #????????????????? | | ????????????????????# #????????????????? | | ????????????????????# #????????????????? | | ????????????????????## ##????????????????? | | ?????????????????????## ###??##?????????????? | | ?????????????????????## #???# #?????????????? | | ?????????????????????# #?## ##????????????? | | ?????????????????????## ## #????????????? | | ??????????????????????## ## #????????????? | | ???????????????????????## #? #?????????????? | | ????????????????????????# ## #######???????? | | ????????????????????????# #???????? | | ???????????????????????### #???????? | | ???????????????????????# #" ## ## #??????? | | ???????????????????????# ## ##???????????? | | ???????????????????????# #" ###??????????? | | ?????????????????????? "## #??????????? | | ?????????????????????###??## R #??????????? | | ?????????????#?????????#### #??????????? | | ????????????## ######?# #??????????? | | ????????????# ## ## ##??????????? | | ?????????????# #? #???????????? | | ???????????????##### #?? #???????????? | | ???????????????????## ####?? ??????????? | | ????????????????????# @ ##??????# #????????? | | ????????????????????## #???????? ????????? | | ?????????????????????#### R#???????? #????????? | | ????????????????????????# #?????????? #????????? | | ???????????????????????? R#????????????????????? | | ??????????????????????? ????????????????????? | | ??????????????????????? #???????????????????? | | ?????????????????????? ???????????????????? | | ?????????????????????? ??????????????????? | | ?????????????????????## ??????????????????? | | ??????????????????????## %#?????????????????? | | ???????????????????????## #?????????????????? | | ????????????????????????? #?????????????????? | | ????????????????????????? ?????????????????? | | ?????????????????????????# ???????????????????? | | ??????????????????????????##?????????????????????? | | ?????????????????????????????????????????????????? | | ?????????????????????????????????????????????????? | | ?????????????????????????????????????????????????? | | ?????????????????????????????????????????????????? | | ?????????????????????????????????????????????????? | | ?????????????????????????????????????????????????? | | ?????????????????????????????????????????????????? | | ?????????????????????????????????????????????????? | | ?????????????????????????????????????????????????? | +----------------------------------------------------+ Best States ------------- Heat Dissipation 25 Energy Generation 5 Energy Capacity 100 Matter Stores 190 Matter Capacity 300 Sight Range 16 Terrain Scan Density 10 Evasion (%) 50 Item Schematics ----------------- None Robot Schematics ------------------ None Fabricated ------------ Nothing Repaired ---------- Nothing Studied --------- None Alien Tech Used ----------------- None Achievements -------------- Organ Harvest Challenges ------------ None Game ------ Seed BlastShiftBeam Manual? 0 Play Time 00:04:20 Cumulative 64.1 hours Start 2025.10.29 @ 18:33:11 End 2025.10.29 @ 18:40:40 Sessions 1 Manual Loads 0 Difficulty Rogue Special Mode None Game No. 154 Rogue 154 Adventurer 0 Explorer 0 Win Type - Total 1 Types 1/0/0/0/0/0/0/0/0/0 Lore% 33 Gallery% 37 Achievement% 18 Wizard Run 0 Options --------- Layout 1 ASCII 0 Keyboard 0 Movement Arrows Keybinds 0 Fullscreen 1 Font 24/Smallcaps Map View 50x40 Zoom Use 0% Tactical HUD 1 Map Filters NONE Filters NONE Steam 1 RUN: f77c3b5c-ea5b-4866-a7b7-06fd9826e94d